fUSD/lending_fUSD_20250807
["ID","MTS","AMOUNT","RATE_DAILY","PERIOD"]
[377740686,1754528717749,150.0,0.00019365,4]
[377740687,1754528718913,150.0,0.00019409,4]
[377740688,1754528718992,150.0,0.00019453,4]
[377740689,1754528719044,150.0,0.00019497,4]
[377740690,1754528724100,150.0,0.00019207,4]
[377740691,1754528730331,150.0,0.00019237,4]
[377740692,1754528730378,150.0,0.00019444,4]
[377740693,1754528731014,150.0,0.00019237,4]
[377740694,1754528731128,150.0,0.00019444,4]
[377740695,1754528733787,150.0,0.00019207,4]
[377740696,1754528735275,150.0,0.00019306,4]
[377740697,1754528739293,150.0,0.00019306,4]
[377740705,1754528765308,160.23,0.00017809,2]
[377740706,1754528781673,161.81,0.00017798,2]
[377740708,1754528798076,176.7,0.00017794,2]
[377741218,1754528871641,155.57,0.0003013,120]
[377741225,1754529016552,512.0,0.00017592,2]
[377741234,1754529031649,-300.0,0.00018014,2]
[377741235,1754529031660,-250.0,0.00018016,2]
[377741236,1754529031670,-4632.31,0.00018027,2]
[377741237,1754529031679,-158.35,0.00018035,2]
[377741238,1754529031688,-257.48092199,0.00018049,2]
[377741239,1754529031698,-277.35679052,0.00018097,2]
[377741240,1754529031707,-1200.0,0.00018106,2]
[377741241,1754529031717,-300.0,0.00018106,2]
[377741242,1754529031726,-23900.0,0.00018107,2]
[377741243,1754529031736,-461.7,0.00018254,2]
[377741244,1754529031745,-374.0,0.0001827,2]
[377741245,1754529031754,-151.0,0.00018359,2]
[377741246,1754529031763,-167.47459423,0.00018429,2]
[377741247,1754529031773,-250.0,0.00018453,2]
[377741248,1754529031782,-190.7,0.00018493,2]
[377741249,1754529031792,-150.0,0.00018616,2]
[377741250,1754529031803,-150.0,0.00018616,2]
[377741251,1754529031813,-150.0,0.00018616,2]
[377741252,1754529031822,-150.0,0.00018616,2]
[377741253,1754529031832,-150.0,0.00018616,2]
[377741254,1754529031841,-150.0,0.00018616,2]
[377741255,1754529031851,-150.0,0.00018616,2]
[377741256,1754529031862,-150.0,0.00018616,2]
[377741257,1754529031872,-150.0,0.00018616,2]
[377741258,1754529031882,-150.0,0.00018616,2]
[377741259,1754529031892,-150.0,0.00018616,2]
[377741260,1754529031903,-252.24775132,0.00018616,2]
[377741261,1754529031912,-150.0,0.00018616,2]
[377741262,1754529031923,-150.0,0.0001866,2]
[377741263,1754529031933,-710.29,0.00018674,2]
[377741264,1754529031944,-150.0,0.00018685,2]
[377741265,1754529031954,-569.04,0.000187,2]
[377741266,1754529031963,-150.0,0.00018704,2]
[377741267,1754529031973,-150.0,0.00018731,2]
[377741268,1754529031983,-150.0,0.00018748,2]
[377741269,1754529031992,-150.0,0.00018754,2]
[377741270,1754529032002,-600.0,0.00018779,2]
[377741271,1754529032011,-600.0,0.00018779,2]
[377741273,1754529032021,-600.0,0.00018779,2]
[377741275,1754529032030,-405.58,0.00018779,2]
[377741277,1754529032045,-82640.74836531,0.0001879,2]
[377741278,1754529032097,-266.77126041,0.0001879,2]
[377741279,1754529032109,-18787.09992418,0.0001879,2]
[377741282,1754529032187,-877.23504026,0.0001879,2]
[377741283,1754529032198,-7375.7164186,0.0001879,2]
[377741298,1754529039652,-1421.90627752,0.0001879,2]
[377741299,1754529039664,-5889.7117082,0.0001879,2]
[377741300,1754529039676,-4101.70245176,0.0001879,2]
[377741301,1754529041947,-0.01291327,0.0001879,2]
[377741302,1754529041971,-537.11527294,0.0001879,2]
[377741317,1754529043102,-815.92,0.0001879,2]
[377742565,1754529149685,367.0,0.000168,2]
[377742566,1754529149939,359.0,0.0001798,2]
[377742567,1754529159703,1000.0,0.00017987,2]
[377742568,1754529182948,568.23,0.00017992,2]
[377742569,1754529215413,248.92,0.00013699,2]
[377742574,1754529248761,23900.0,0.00017992,2]
[377742575,1754529249604,-214.70464961,0.0001879,2]
[377742576,1754529252147,-193.88862359,0.0001879,2]
[377742577,1754529258174,-151.0,0.0001879,2]
[377742580,1754529280378,5000.0,0.00017987,2]
[377742582,1754529376528,-175.0,0.00018611,2]
[377742583,1754529391373,179.09,0.00017965,2]
[377742585,1754529409420,182.28,0.00030136,120]
[377742589,1754529501991,729.72,0.00017916,2]
[377742591,1754529570671,199.74,0.00017912,2]
[377742592,1754529571138,199.74,0.00026868,120]
[377742596,1754529683070,353.0,0.000158,2]
[377742597,1754529683449,345.0,0.0001698,2]
[377742598,1754529698339,500.0,0.00030137,120]
[377742599,1754529701478,392.44,0.00015068,2]
[377742600,1754529701725,392.44,0.0001666,2]
[377742602,1754529705532,504.0,0.00017611,2]
[377742603,1754529715650,502.5,0.00030137,120]
[377742607,1754529753431,175.0,0.00017916,7]
[377742608,1754529753742,576.59,0.00017914,2]
[377742609,1754529760173,339.38,0.00017904,2]
[377742610,1754529760426,339.38,0.00017913,2]
[377742611,1754529760663,339.38,0.00017923,2]
[377742612,1754529760883,339.38,0.00017932,2]
[377742613,1754529761135,339.38,0.00017942,2]
[377742614,1754529761354,339.38,0.00017951,2]
[377742615,1754529761561,339.38,0.0001796,2]
[377742616,1754529761811,339.38,0.0001797,2]
[377742617,1754529762019,339.38,0.00017979,2]
[377742618,1754529762233,339.38,0.00017989,2]
[377742619,1754529762425,339.38,0.00017998,2]
[377742620,1754529821169,166.84,0.00017812,2]
[377742624,1754529891386,158.32,0.0001779,2]
[377742626,1754529914876,150.0,0.0001921,4]
[377742627,1754529914967,150.0,0.00019296,4]
[377742628,1754529915040,150.0,0.00019383,4]
[377742629,1754529915143,150.0,0.00019469,4]
[377742630,1754529919793,150.0,0.00019329,4]
[377742631,1754529919850,150.0,0.00019489,4]
[377742632,1754529921713,150.0,0.00019224,4]
[377742633,1754529921788,150.0,0.00019284,4]
[377742634,1754529921854,150.0,0.00019343,4]
[377742635,1754529921950,150.0,0.00019402,4]
[377742636,1754529922001,150.0,0.00019462,4]
[377742637,1754529931594,150.0,0.00019284,4]
[377742638,1754529942058,150.0,0.00019284,4]
[377742639,1754529945143,150.0,0.00019383,4]
[377742648,1754529985582,420.68695277,0.00030136,120]
[377742649,1754530027102,200.0,0.00017916,2]
[377742674,1754530149589,-339.38,0.00018008,2]
[377742675,1754530149616,-122.23629969,0.00018012,2]
[377742676,1754530149643,579.56,0.0001777,2]
[377742677,1754530151764,19375.26,0.0001777,2]
[377742793,1754530189151,1000.0,0.00017916,2]
[377742795,1754530218228,339.0,0.000148,2]
[377742796,1754530218306,332.0,0.0001598,2]
[377742797,1754530218647,326.0,0.0001717,2]
[377742805,1754530231817,-339.38,0.00018017,2]
[377742807,1754530231827,-339.38,0.00018026,2]
[377742809,1754530231836,-2131.31778126,0.00018032,2]
[377742811,1754530231846,-339.38,0.00018036,2]
[377742813,1754530231856,-339.38,0.00018045,2]
[377742815,1754530231866,-339.38,0.00018055,2]
[377742817,1754530231875,-339.38,0.00018064,2]
[377742819,1754530231885,-339.38,0.00018073,2]
[377742820,1754530231895,-339.38,0.00018083,2]
[377742821,1754530231904,-392.44,0.00018251,2]
[377742822,1754530231915,-319.0,0.0001835,2]
[377742823,1754530231924,-167.47459424,0.00018429,2]
[377742824,1754530231934,-158.32,0.00018457,2]
[377742825,1754530231944,-169.17,0.00018465,2]
[377742826,1754530231953,-718.56749219,0.0001863,2]
[377742827,1754530232075,-281.43250781,0.0001863,2]
[377742828,1754530232085,-579.56,0.00018658,2]
[377742829,1754530232095,-1048.27658445,0.00018689,2]
[377742830,1754530232123,-151.72341555,0.00018689,2]
[377742831,1754530232132,-150.0,0.0001869,2]
[377742832,1754530232143,-150.0,0.0001869,2]
[377742833,1754530232153,-150.0,0.0001869,2]
[377742834,1754530232163,-150.0,0.0001869,2]
[377742835,1754530232173,-150.0,0.0001869,2]
[377742836,1754530232182,-150.0,0.0001869,2]
[377742837,1754530232192,-150.0,0.0001869,2]
[377742838,1754530232203,-150.0,0.0001869,2]
[377742839,1754530232212,-150.0,0.0001869,2]
[377742840,1754530232222,-150.0,0.0001869,2]
[377742841,1754530232232,-504.0,0.00018731,2]
[377742843,1754530232241,-150.0,0.0001875,2]
[377742845,1754530232251,-150.0,0.00018777,2]
[377742846,1754530232260,-200.0,0.00018779,2]
[377742848,1754530232273,-600.0,0.00018779,2]
[377742851,1754530232287,-160.0,0.00018779,2]
[377742853,1754530232296,-250.0,0.00018779,2]
[377742854,1754530232305,-21.27658445,0.00018779,2]
[377742857,1754530232328,-278.72341555,0.00018779,2]
[377742858,1754530232339,-416.03518578,0.00018779,2]
[377742860,1754530232348,-283.26146372,0.00018779,2]
[377742861,1754530232362,-216.73853628,0.00018779,2]
[377742862,1754530232372,-500.0,0.00018779,2]
[377742863,1754530232382,-500.0,0.00018779,2]
[377742864,1754530232391,-500.0,0.00018779,2]
[377742865,1754530232401,-500.0,0.00018779,2]
[377742866,1754530232412,-500.0,0.00018779,2]
[377742867,1754530232421,-629.73102222,0.00018779,2]
[377742868,1754530232431,-151.0,0.00018779,2]
[377742869,1754530232442,-151.0,0.00018779,2]
[377742870,1754530232452,-151.0,0.00018779,2]
[377742871,1754530232463,-151.0,0.00018779,2]
[377742872,1754530232472,-277.35679052,0.00018779,2]
[377742875,1754530232482,-27.54677109,0.0001879,2]
[377742877,1754530232878,-602.86785145,0.0001879,2]
[377742878,1754530237720,-6975.60800465,0.0001879,2]
[377742879,1754530237842,-8891.6452061,0.0001879,2]
[377742880,1754530237953,-865.69,0.0001879,2]
[377742881,1754530237964,-594.51965989,0.0001879,2]
[377742882,1754530237976,-425.86134652,0.0001879,2]
[377742883,1754530238009,-784.82832574,0.0001879,2]
[377742884,1754530238021,-875.65385162,0.0001879,2]
[377742885,1754530238032,-10705.77386396,0.0001879,2]
[377742886,1754530238043,-948.74718367,0.0001879,2]
[377743044,1754530239800,-512.27802841,0.0001879,2]
[377743046,1754530239811,-252.98809997,0.0001879,2]
[377743059,1754530239933,-3348.16467372,0.0001879,2]
[377743071,1754530240036,-259.60347086,0.0001879,2]
[377743073,1754530240047,-500.00000778,0.0001879,2]
[377743075,1754530240059,-16866.2046264,0.0001879,2]
[377743085,1754530240148,-25817.47105613,0.0001879,2]
[377743087,1754530240159,-54832.79415089,0.0001879,2]
[377743099,1754530240264,-17392.3880481,0.0001879,2]
[377743101,1754530240275,-3896.05274851,0.0001879,2]
[377743103,1754530240287,-2484.59839915,0.0001879,2]
[377743105,1754530240298,-29587.95127614,0.0001879,2]
[377743107,1754530240310,-7604.1649536,0.0001879,2]
[377743109,1754530240319,-2257.71406,0.0001879,2]
[377743111,1754530240332,-150.0,0.00018809,2]
[377743113,1754530240341,-636.0,0.00018822,2]
[377743115,1754530240350,-589.1209864,0.00018827,2]
[377743343,1754530242815,-10.8790136,0.00018827,2]
[377743345,1754530242825,-241.98182805,0.00018827,2]
[377743347,1754530242837,-358.01817195,0.00018827,2]
[377743349,1754530242846,-140.68040439,0.00018827,2]
[377743369,1754530243035,-459.31959561,0.00018827,2]
[377743371,1754530243044,-140.68040439,0.00018832,2]
[377743384,1754530243146,-539.48416761,0.00018832,2]
[377743386,1754530243155,-200.0,0.00018848,2]
[377743388,1754530243165,-150.0,0.0001885,2]
[377743390,1754530243174,-150.0,0.00018863,2]
[377743391,1754530243183,-150.0,0.00018868,2]
[377743393,1754530243193,-500.0,0.00018895,2]
[377743395,1754530243202,-500.0,0.00018895,2]
[377743396,1754530243214,-500.0,0.00018895,2]
[377743398,1754530243223,-500.0,0.00018895,2]
[377743400,1754530243233,-500.0,0.00018895,2]
[377743402,1754530243242,-500.0,0.00018895,2]
[377743403,1754530243252,-500.0,0.00018895,2]
[377743405,1754530243262,-500.0,0.00018895,2]
[377743407,1754530243271,-500.0,0.00018895,2]
[377743409,1754530243281,-500.0,0.00018895,2]
[377743410,1754530243290,-500.0,0.00018895,2]
[377743412,1754530243300,-500.0,0.00018895,2]
[377743414,1754530243309,-500.0,0.00018895,2]
[377743416,1754530243319,-500.0,0.00018895,2]
[377743417,1754530243328,-500.0,0.00018895,2]
[377743419,1754530243337,-500.0,0.00018895,2]
[377743421,1754530243347,-500.0,0.00018895,2]
[377743423,1754530243356,-500.0,0.00018895,2]
[377743424,1754530243366,-500.0,0.00018895,2]
[377743426,1754530243376,-500.0,0.00018895,2]
[377743428,1754530243390,-500.0,0.00018895,2]
[377743430,1754530243399,-176.37199095,0.00018895,2]
[377743786,1754530247359,-323.62800905,0.00018895,2]
[377743788,1754530247369,-500.0,0.00018895,2]
[377743790,1754530247379,-500.0,0.00018895,2]
[377743792,1754530247389,-500.0,0.00018895,2]
[377743794,1754530247402,-278.95445894,0.00018895,2]
[377743810,1754530247548,-221.04554106,0.00018895,2]
[377743812,1754530247557,-500.0,0.00018895,2]
[377743814,1754530247567,-500.0,0.00018895,2]
[377743816,1754530247577,-500.0,0.00018895,2]
[377743818,1754530247587,-600.81412664,0.00018895,2]
[377743820,1754530247596,-500.0,0.00018895,2]
[377743822,1754530247605,-1583.29778028,0.00018897,2]
[377743824,1754530247616,-534.35,0.00018897,2]
[377743827,1754530247627,-1151.1,0.00018897,2]
[377746859,1754530406455,316.0,0.00030136,120]
[377746861,1754530444363,378.0,0.00030137,120]
[377746864,1754530451999,1000.0,0.0003,120]
[377746867,1754530461918,150.97,0.00030136,120]
[377746869,1754530480868,236.47,0.00013699,2]
[377746877,1754530549612,1000.0,0.00030136,120]
[377746878,1754530557218,1000.0,0.00030136,120]
[377746879,1754530570893,1000.0,0.00030136,120]
[377746880,1754530576203,1000.0,0.00030136,120]
[377746882,1754530594872,1000.0,0.00030136,120]
[377746885,1754530601459,1000.0,0.00030136,120]
[377746888,1754530615961,887.2556098,0.00030136,120]
[377746889,1754530617894,2004.0,0.00030136,120]
[377746890,1754530621422,1000.0,0.00030136,120]
[377746891,1754530622895,345.51,0.00015068,2]
[377746892,1754530623054,345.51,0.00016666,2]
[377746893,1754530628251,1000.0,0.00030136,120]
[377746894,1754530630435,400.0,0.00030136,120]
[377746897,1754530637303,1000.0,0.00030136,120]
[377746900,1754530648068,400.0,0.00030136,120]
[377746901,1754530649218,1000.0,0.00030136,120]
[377746903,1754530659655,1000.0,0.00030136,120]
[377746905,1754530671775,1000.0,0.00030136,120]
[377746908,1754530692111,962.22122211,0.00030136,120]
[377746911,1754530722588,513.54130697,0.00017299,2]
[377746912,1754530722947,150.0,0.000171,2]
[377746913,1754530723303,437.86153542,0.00017199,2]
[377746914,1754530723675,589.22107853,0.00017398,2]
[377746915,1754530724938,664.90085008,0.00017498,2]
[377746916,1754530725142,740.58062163,0.00017597,2]
[377746917,1754530725382,816.26039319,0.00017697,2]
[377746918,1754530725463,891.94016474,0.00017796,2]
[377746919,1754530725547,967.61993629,0.00017896,2]
[377746920,1754530725796,1043.29970785,0.00017995,2]
[377746925,1754530740878,158.35,0.00017784,2]
[377746926,1754530741294,158.35,0.00026676,120]
[377746933,1754530756062,313.0,0.000138,2]
[377746934,1754530756524,307.0,0.0001498,2]
[377746935,1754530756798,301.0,0.0001617,2]
[377746936,1754530758229,295.0,0.0001735,2]
[377746937,1754530773906,215.56266941,0.000195,3]
[377746939,1754530778890,568.56,0.00017875,2]
[377746941,1754530786834,1250.09875071,0.000301,120]
[377746949,1754530825274,200.0,0.00017846,2]
[377746950,1754530828235,172.21,0.00017784,2]
[377746951,1754530896090,14266.85,0.00017844,2]
[377746967,1754531036594,150.0,0.000171,2]
[377746968,1754531037354,427.09606461,0.00017199,2]
[377746969,1754531037432,500.9151375,0.00017299,2]
[377746970,1754531037652,574.73421039,0.00017398,2]
[377746971,1754531038001,648.55328329,0.00017498,2]
[377746972,1754531038498,722.37235618,0.00017597,2]
[377746973,1754531038829,796.19142908,0.00017697,2]
[377746974,1754531039184,870.01050197,0.00017796,2]
[377746977,1754531039528,943.82957487,0.00017896,2]
[377746978,1754531039873,1017.64864776,0.00017995,2]
[377746993,1754531096636,166.84,0.00017804,2]
[377746997,1754531101899,390.91346862,0.000301,120]
[377747002,1754531114714,150.0,0.00018,2]
[377747003,1754531115825,150.0,0.00019185,4]
[377747004,1754531115914,150.0,0.00019259,4]
[377747005,1754531116041,150.0,0.00019333,4]
[377747006,1754531116104,150.0,0.00019407,4]
[377747007,1754531116151,150.0,0.00019481,4]
[377747008,1754531116194,506.0,0.00017903,2]
[377747010,1754531116760,150.0,0.00018,2]
[377747011,1754531117080,150.0,0.00019333,4]
[377747012,1754531117537,150.0,0.00018,2]
[377747013,1754531118156,150.0,0.00019294,4]
[377747014,1754531118231,150.0,0.00019412,4]
[377747015,1754531124170,150.0,0.00018,2]
[377747016,1754531124360,150.0,0.000195,4]
[377747017,1754531125853,150.0,0.00018,2]
[377747018,1754531126115,150.0,0.000192,4]
[377747019,1754531131803,150.0,0.00018,2]
[377747020,1754531132160,150.0,0.00019333,4]
[377747021,1754531132339,150.0,0.00018,2]
[377747022,1754531132508,150.0,0.000195,4]
[377747023,1754531132717,152.59082394,0.00018,2]
[377747024,1754531136488,150.0,0.00018,2]
[377747025,1754531136681,150.0,0.000192,4]
[377747039,1754531140182,150.0,0.00018,2]
[377747040,1754531151353,347.73,0.00017633,2]
[377747041,1754531170381,1000.0,0.0001763,2]
[377747042,1754531175126,150.0,0.00017784,2]
[377747055,1754531269966,6340.82,0.00017631,2]
[377747058,1754531289307,290.0,0.000128,2]
[377747059,1754531289687,284.0,0.0001398,2]
[377747060,1754531290175,278.0,0.0001517,2]
[377747061,1754531290588,272.0,0.0001635,2]
[377747062,1754531290960,266.0,0.0001753,2]
[377747067,1754531351337,150.0,0.000171,2]
[377747068,1754531351619,409.47660475,0.00017199,2]
[377747069,1754531351967,480.2503389,0.00017299,2]
[377747070,1754531352611,551.02407305,0.00017398,2]
[377747071,1754531352761,621.79780721,0.00017498,2]
[377747073,1754531353150,692.57154136,0.00017597,2]
[377747075,1754531353501,763.34527552,0.00017697,2]
[377747077,1754531353679,203.7,0.00030137,120]
[377747078,1754531353772,834.11900967,0.00017796,2]
[377747080,1754531354105,904.89274382,0.00017896,2]
[377747081,1754531354401,975.66647798,0.00017995,2]
[377747082,1754531386175,300.0,0.00030136,120]
[377747086,1754531427922,224.64,0.00013699,2]
[377747087,1754531427984,233.0,0.00023,30]
[377747091,1754531432005,-254.11996079,0.00018074,2]
[377747092,1754531432015,-250.0,0.00018074,2]
[377747093,1754531432024,-150.0,0.00018074,2]
[377747094,1754531432033,-1046.44021213,0.00018095,2]
[377747095,1754531432042,-150.0,0.00018118,2]
[377747096,1754531432052,-150.0,0.00018148,2]
[377747097,1754531432061,-166.66,0.00018169,2]
[377747098,1754531432070,-1117.21394628,0.00018194,2]
[377747099,1754531432080,-150.0,0.00018222,2]
[377747100,1754531432089,-150.0,0.00018222,2]
[377747101,1754531432099,-150.0,0.00018235,2]
[377747102,1754531432108,-345.51,0.00018264,2]
[377747103,1754531432118,-920.0558808,0.00018294,2]
[377747104,1754531432129,-267.93179964,0.00018294,2]
[377747105,1754531432140,-150.0,0.00018296,2]
[377747106,1754531432150,-150.0,0.00018333,2]
[377747107,1754531432159,-150.0,0.00018353,2]
[377747108,1754531432169,-150.0,0.0001837,2]
[377747109,1754531432178,-1258.76141459,0.00018393,2]
[377747110,1754531432187,-150.0,0.000184,2]
[377747111,1754531432197,-150.0,0.000184,2]
[377747112,1754531432207,-1200.0,0.00018443,2]
[377747113,1754531432219,-150.0,0.00018444,2]
[377747114,1754531432229,-150.0,0.00018444,2]
[377747115,1754531432239,-465.80420878,0.00018468,2]
[377747116,1754531432248,-150.0,0.00018471,2]
[377747117,1754531432259,-277.35679052,0.00018482,2]
[377747118,1754531432268,-300.0,0.00018492,2]
[377747119,1754531432278,-1329.53514875,0.00018493,2]
[377747120,1754531432288,-150.0,0.000185,2]
[377747121,1754531432299,-150.0,0.000185,2]
[377747122,1754531432308,-347.73,0.00018514,2]
[377747123,1754531432319,-150.0,0.00018519,2]
[377747124,1754531432328,-150.0,0.00018588,2]
[377747125,1754531432338,-1400.3088829,0.00018592,2]
[377747126,1754531432347,-150.0,0.00018593,2]
[377747127,1754531432356,-1000.0,0.0001863,2]
[377747128,1754531432366,-150.0,0.00018667,2]
[377747129,1754531432375,-150.0,0.00018667,2]
[377747130,1754531432385,-150.0,0.00018667,2]
[377747131,1754531432394,-172.21,0.00018673,2]
[377747132,1754531432405,-1471.08261705,0.00018692,2]
[377747133,1754531432414,-506.3706796,0.000187,2]
[377747134,1754531432424,-150.0,0.00018706,2]
[377747135,1754531432433,-738.57109,0.0001871,2]
[377747136,1754531432442,-522.0,0.0001872,2]
[377747137,1754531432452,-150.0,0.00018741,2]
[377747138,1754531432461,-5659.92854737,0.00018789,2]
[377747139,1754531432523,-1015.46111188,0.00018789,2]
[377747140,1754531432532,-275.0509,0.00018789,2]
[377747141,1754531432542,-6926.7537,0.00018789,2]
[377747142,1754531432551,-230.4144,0.00018789,2]
[377747143,1754531432561,-1130.6625,0.00018789,2]
[377747144,1754531432570,-1585.3632,0.00018789,2]
[377747145,1754531432580,-1000.0,0.00018789,2]
[377747146,1754531432590,-1541.85635121,0.00018791,2]
[377747147,1754531432599,-2500.0,0.000188,2]
[377747148,1754531432609,-1236.5492,0.000188,2]
[377747149,1754531432619,-150.0,0.000188,2]
[377747150,1754531432628,-150.0,0.000188,2]
[377747151,1754531432637,-738.5711,0.0001881,2]
[377747152,1754531432647,-150.0,0.00018815,2]
[377747153,1754531432657,-150.0,0.00018824,2]
[377747154,1754531432667,-506.33,0.00018827,2]
[377747155,1754531432677,-200.0,0.00018848,2]
[377747156,1754531432687,-165.01292498,0.00018874,2]
[377747157,1754531432697,-377.23786308,0.00018874,2]
[377747158,1754531432706,-500.0,0.00018874,2]
[377747159,1754531432716,-500.0,0.00018874,2]
[377747160,1754531432726,-500.0,0.00018874,2]
[377747162,1754531432736,-500.0,0.00018874,2]
[377747164,1754531432746,-500.0,0.00018874,2]
[377747166,1754531432755,-500.0,0.00018874,2]
[377747168,1754531432764,-500.0,0.00018874,2]
[377747170,1754531432773,-500.0,0.00018874,2]
[377747172,1754531432782,-500.0,0.00018874,2]
[377747174,1754531432791,-500.0,0.00018874,2]
[377747175,1754531432801,-500.0,0.00018874,2]
[377747177,1754531432809,-354.2314199,0.00018874,2]
[377747179,1754531432819,-500.0,0.00018874,2]
[377747181,1754531432828,-595.80284028,0.00018874,2]
[377747183,1754531432838,-500.0,0.00018874,2]
[377747185,1754531432846,-500.0,0.00018874,2]
[377747187,1754531432856,-500.0,0.00018874,2]
[377747189,1754531432866,-500.0,0.00018874,2]
[377747191,1754531432875,-500.0,0.00018874,2]
[377747193,1754531432885,-500.0,0.00018874,2]
[377747195,1754531432894,-500.0,0.00018874,2]
[377747197,1754531432903,-500.0,0.00018874,2]
[377747199,1754531432913,-500.0,0.00018874,2]
[377747201,1754531432923,-500.0,0.00018874,2]
[377747203,1754531432932,-500.0,0.00018874,2]
[377747205,1754531432942,-500.0,0.00018874,2]
[377747207,1754531432951,-500.0,0.00018874,2]
[377747209,1754531432961,-500.0,0.00018874,2]
[377747211,1754531432975,-500.0,0.00018874,2]
[377747212,1754531432985,-500.0,0.00018874,2]
[377747214,1754531432995,-416.03518578,0.00018876,2]
[377747216,1754531433005,-160.0,0.00018876,2]
[377747218,1754531433015,-151.0,0.00018876,2]
[377747220,1754531433025,-151.0,0.00018876,2]
[377747222,1754531433035,-151.0,0.00018876,2]
[377747224,1754531433046,-151.0,0.00018876,2]
[377747226,1754531433056,-151.0,0.00018876,2]
[377747227,1754531433065,-198.53969695,0.00018876,2]
[377747228,1754531433075,-500.0,0.00018876,2]
[377747229,1754531433085,-500.0,0.00018876,2]
[377747231,1754531433095,-500.0,0.00018876,2]
[377747232,1754531433105,-500.0,0.00018876,2]
[377747233,1754531433115,-616.40294877,0.00018876,2]
[377747234,1754531433125,-250.0,0.00018876,2]
[377747235,1754531433135,-250.0,0.00018876,2]
[377747237,1754531433145,-250.0,0.00018876,2]
[377747238,1754531433157,-250.0,0.00018876,2]
[377747239,1754531433167,-217.31672549,0.00018876,2]
[377747240,1754531433178,-500.0,0.00018877,2]
[377747241,1754531433188,-500.0,0.00018888,2]
[377747242,1754531433197,-251.0533484,0.00018888,2]
[377747243,1754531433207,-150.0,0.00018889,2]
[377747244,1754531433221,-150.0,0.00018889,2]
[377747245,1754531433231,-151.576148,0.00018889,2]
[377747246,1754531433241,-151.0,0.00018889,2]
[377747247,1754531433251,-151.0,0.00018889,2]
[377747248,1754531433261,-151.0,0.00018889,2]
[377747249,1754531433271,-151.0,0.00018889,2]
[377747250,1754531433281,-12255.8323437,0.00018889,2]
[377747251,1754531433291,-151.0,0.00018889,2]
[377747252,1754531433301,-151.381743,0.00018889,2]
[377747253,1754531433310,-157.254853,0.00018889,2]
[377747254,1754531433320,-13603.58103593,0.00018889,2]
[377747255,1754531433333,-18865.06946407,0.00018889,2]
[377747256,1754531433342,-32468.6505,0.00018889,2]
[377747257,1754531433351,-151.0,0.00018889,2]
[377747258,1754531433361,-151.0,0.00018889,2]
[377747259,1754531433370,-190.863,0.00018889,2]
[377747260,1754531433380,-151.0,0.00018889,2]
[377747261,1754531433389,-31722.4619999,0.00018889,2]
[377747262,1754531433398,-165.338166,0.00018889,2]